bitfinex/quotes_ETHUSD_20251010
["timestamp","ask_amount","ask_price","bid_price","bid_amount"]
[1760122680018,0.52250191,4072.0,4071.7,2.45596052]
[1760122680195,0.52250191,4071.9,4071.6,2.45798502]
[1760122680515,0.4259,4071.9,4071.6,0.002]
[1760122680712,0.94840191,4071.9,4071.6,2.45802553]
[1760122680895,0.4259,4071.9,4071.6,0.002]
[1760122681090,0.52250191,4071.9,4071.6,2.45803593]
[1760122681416,0.52250191,4072.0,4071.7,2.45597305]
[1760122681623,0.52250191,4071.9,4071.7,2.45597305]
[1760122681807,0.77645288,4072.1,4071.6,0.002]
[1760122681808,0.52250191,4072.0,4071.6,2.45801504]
[1760122681985,0.52250191,4071.9,4071.6,2.45801504]
[1760122682186,0.52250191,4071.8,4071.6,2.45801504]
[1760122682513,0.52250191,4072.0,4071.7,2.45596591]
[1760122682716,0.52410552,4071.9,4071.8,2.45590399]
[1760122682903,0.52410552,4071.9,4071.6,0.002]
[1760122683217,3.739,4072.5,4071.6,0.002]
[1760122683218,0.52410552,4072.0,4071.9,2.45585598]
[1760122683383,0.52410552,4072.1,4072.0,2.45579567]
[1760122683804,0.52410552,4072.1,4071.8,2.45591244]
[1760122683997,0.52410552,4072.0,4071.8,2.45587152]
[1760122684205,0.52410552,4071.9,4071.8,2.45587152]
[1760122684418,1.10790552,4071.9,4071.7,0.1224]
[1760122684587,1.7237584,4071.8,4071.6,0.002]
[1760122684788,0.52410552,4071.7,4071.6,0.002]
[1760122685020,8.07730552,4071.7,4071.6,0.002]
[1760122686706,8.95110365,4071.7,4071.6,0.002]
[1760122687022,8.07730552,4071.7,4071.6,0.002]
[1760122687215,8.07730552,4071.7,4071.2,0.002]
[1760122687216,1.92,4071.6,4071.2,0.002]
[1760122687411,1.31062866,4071.4,4071.2,0.002]
[1760122687629,7.65410552,4071.3,4071.2,0.002]
[1760122687835,10.12430552,4071.3,4071.2,0.002]
[1760122689400,11.43493418,4071.3,4071.2,0.002]
[1760122691021,42.04430552,4071.3,4071.2,0.002]
[1760122691368,41.92,4071.2,4071.1,0.002]
[1760122691674,37.92339887,4071.2,4071.1,0.002]
[1760122691960,38.34659887,4071.2,4071.1,0.002]
[1760122692163,36.60530552,4071.2,4071.1,0.002]
[1760122692358,38.35045509,4071.2,4071.1,0.002]
[1760122693271,36.60530552,4071.2,4071.1,0.002]
[1760122693918,27.57530552,4071.2,4071.1,0.002]
[1760122694118,2.86730552,4071.2,4071.1,0.002]
[1760122694326,4.17566274,4071.2,4071.1,0.002]
[1760122694633,9.96066274,4071.2,4071.1,0.002]
[1760122696343,47.09066274,4071.2,4071.1,0.002]
[1760122696727,45.78230552,4071.2,4071.1,0.002]
[1760122697967,43.78530552,4071.2,4071.1,0.002]
[1760122698119,38.45530552,4071.2,4071.1,0.002]
[1760122698325,33.02430552,4071.2,4071.1,0.002]
[1760122698595,34.33157754,4071.2,4071.1,0.002]
[1760122698740,35.48058376,4071.2,4071.1,0.002]
[1760122699057,34.37639891,4071.0,4070.9,0.002]
[1760122699249,38.63850443,4071.0,4070.9,0.002]
[1760122699447,38.88460443,4071.0,4070.9,0.002]
[1760122699646,39.30780443,4071.0,4070.9,0.002]
[1760122700070,3.0901196,4070.8,4070.7,0.002]
[1760122700269,57.48131863,4070.8,4070.7,0.002]
[1760122700440,3.4687,4070.4,4070.3,0.002]
[1760122700641,32.1661,4070.1,4070.0,0.002]
[1760122700846,57.48074111,4070.1,4070.0,0.002]
[1760122701060,57.90394111,4070.1,4070.0,0.002]
[1760122701261,2.45727996,4069.6,4067.7,2.45838692]
[1760122701457,0.65235771,4068.9,4067.8,0.24583869]
[1760122701658,4.1592,4068.8,4067.8,0.24583869]
[1760122701834,0.52410552,4068.7,4067.6,2.45843807]
[1760122702035,1.92,4068.5,4066.7,0.2179]
[1760122702247,0.65235771,4068.3,4067.3,2.4585801]
[1760122702473,4.1592,4068.2,4067.2,2.45863529]
[1760122702684,0.52410552,4068.1,4067.3,2.45863144]
[1760122702983,3.739,4068.0,4067.4,2.45851931]
[1760122703192,0.52410552,4067.9,4066.8,0.4285]
[1760122703382,3.739,4067.8,4067.3,2.45862233]
[1760122703886,4.1808,4067.8,4067.3,2.45862706]
[1760122704279,4.1808,4067.8,4067.4,2.45855787]
[1760122704460,3.739,4067.8,4067.7,2.45839172]
[1760122704778,2.70035771,4069.0,4068.5,2.45789296]
[1760122704979,2.70035771,4069.0,4067.8,3.09191808]
[1760122704980,3.739,4068.9,4068.4,2.45795645]
[1760122705181,0.52098035,4068.8,4067.8,0.6336]
[1760122705384,0.52098035,4068.8,4067.4,2.048]
[1760122705385,0.65235771,4069.2,4068.2,2.45808957]
[1760122705586,2.641,4069.2,4068.8,2.45768481]
[1760122705786,2.641,4069.2,4068.4,0.6336]
[1760122706112,2.641,4069.2,4068.9,2.45766637]
[1760122706253,3.739,4069.4,4069.1,2.45754522]
[1760122706590,0.52098035,4069.3,4069.1,2.45754522]
[1760122706767,0.52098035,4069.3,4069.2,2.4574855]
[1760122707158,1.29783806,4069.9,4068.7,0.6336]
[1760122707359,3.739,4069.8,4068.8,0.75128727]
[1760122707564,0.52098035,4069.7,4069.0,0.6336]
[1760122707883,0.52098035,4069.7,4069.6,2.45724395]
[1760122708852,3.739,4070.0,4069.5,0.6336]
[1760122709093,3.739,4070.0,4069.6,2.45718604]
[1760122709094,0.52098035,4069.9,4069.6,2.45718604]
[1760122709286,0.001,4069.8,4069.7,2.45718357]
[1760122710257,0.001,4069.8,4069.6,2.45723064]
[1760122710684,0.001,4069.8,4069.7,2.45718357]
[1760122711262,0.001,4069.8,4069.5,0.6336]
[1760122711462,0.001,4069.8,4069.6,2.45723543]
[1760122712211,0.2987,4069.7,4068.4,2.5536]
[1760122712504,0.1224,4069.4,4068.9,2.5800543]
[1760122712706,0.2987,4069.3,4068.9,2.5800543]
[1760122713112,0.1224,4069.4,4068.9,0.1224]
[1760122713258,0.1224,4069.4,4069.0,2.45760629]
[1760122713464,0.1224,4069.4,4069.2,2.45744004]
[1760122713812,0.1224,4069.4,4068.9,0.1224]
[1760122713813,0.1224,4069.4,4069.3,2.4574251]
[1760122714362,0.64338035,4069.4,4069.3,2.4574251]
[1760122714813,0.1224,4069.4,4069.3,2.4574251]
[1760122715014,0.64338035,4069.4,4069.3,2.4574251]
[1760122715220,0.1224,4069.4,4069.3,2.4574251]
[1760122715426,0.64338035,4069.4,4069.3,2.4574251]
[1760122715776,0.52098035,4069.4,4069.3,2.4574251]
[1760122715977,0.65235771,4069.6,4069.3,2.4574251]
[1760122715978,0.52098035,4069.5,4069.4,2.45736472]
[1760122716228,0.52098035,4069.5,4069.4,2.48193836]
[1760122716391,0.001,4069.8,4069.6,3.09084395]
[1760122716731,0.52403873,4069.7,4069.6,3.21324395]
[1760122717022,0.52403873,4069.7,4069.6,2.57964395]
[1760122718012,0.52403873,4069.7,4069.6,0.1224]
[1760122718392,0.52403873,4069.7,4069.6,2.57964395]
[1760122720030,0.52403873,4069.7,4069.6,3.00814395]
[1760122720395,0.52403873,4069.7,4069.6,2.57964395]
[1760122720939,0.52403873,4069.7,4069.6,0.1224]
[1760122721236,0.52403873,4069.7,4069.6,2.57964395]
[1760122721614,7.65403873,4069.7,4069.6,2.57964395]
[1760122722797,7.65403873,4069.7,4069.6,3.64174395]
[1760122723046,1e-08,4069.8,4069.7,3.09078357]
[1760122723254,1e-08,4069.8,4069.7,5.0353554]
[1760122723448,1e-08,4069.8,4069.7,5.43928357]
[1760122724434,1e-08,4069.8,4069.7,9.17728357]
[1760122725712,1e-08,4069.8,4069.7,5.43928357]
[1760122725934,1e-08,4069.8,4069.5,3.738]
[1760122726144,1e-08,4069.8,4069.4,3.738]
[1760122726344,1e-08,4069.8,4069.5,2.45726388]
[1760122726507,1e-08,4069.8,4069.6,2.45720299]
[1760122726955,1e-08,4069.8,4069.5,0.6336]
[1760122727255,0.4314,4069.7,4069.0,0.73895902]
[1760122727489,0.65235771,4069.3,4068.6,2.4578435]
[1760122727780,0.65235771,4069.0,4068.5,0.6336]
[1760122728076,0.65235771,4069.0,4068.7,0.002]
[1760122728554,0.65235771,4069.1,4068.7,0.002]
[1760122729727,0.86981028,4069.4,4068.9,2.45764017]
[1760122729728,0.65235771,4069.2,4068.9,2.45764017]
[1760122729932,0.65235771,4069.4,4069.1,2.45754589]
[1760122730171,0.65235771,4069.4,4069.0,0.4677]
[1760122730468,0.65235771,4069.4,4068.9,2.4576611]
[1760122730765,0.65235771,4069.4,4068.8,0.6336]
[1760122730766,0.65235771,4069.4,4069.0,2.45760409]
[1760122731639,0.65235771,4069.4,4069.0,2.45760081]
[1760122731965,0.65235771,4069.4,4069.0,0.4677]
[1760122732153,0.65235771,4069.5,4069.0,0.4677]
[1760122732472,0.65235771,4069.5,4069.0,2.45758456]
[1760122732678,0.65235771,4069.5,4069.1,2.45749705]
[1760122733037,0.77475771,4069.5,4069.0,2.45759637]
[1760122733337,0.77475771,4069.5,4068.9,0.1224]
[1760122733562,0.65235771,4069.2,4068.7,0.002]
[1760122733765,0.77475771,4069.2,4068.7,2.45978563]
[1760122733976,0.65235771,4069.1,4068.7,0.002]
[1760122734141,0.77475771,4069.2,4068.8,2.45770466]
[1760122734472,0.65235771,4069.1,4068.8,2.45770466]
[1760122734673,0.65235771,4069.0,4068.7,0.002]
[1760122734969,0.65235771,4069.1,4068.9,2.45761687]
[1760122735172,0.52558292,4069.0,4068.9,2.45761687]
[1760122737278,0.52558292,4069.1,4068.9,2.45761687]
[1760122737444,0.52558292,4069.0,4068.9,2.45761687]
[1760122737645,0.52558292,4069.1,4068.9,2.45761687]
[1760122737847,0.52558292,4069.0,4068.9,2.45761687]
[1760122738042,0.52558292,4069.1,4069.0,2.45760629]
[1760122738269,0.52558292,4069.1,4068.9,16.95764532]
[1760122738479,0.52558292,4069.1,4069.0,2.45760629]
[1760122738678,0.52558292,4069.1,4068.9,16.95765052]
[1760122738877,0.52558292,4069.1,4068.9,14.5]
[1760122739088,0.52558292,4069.0,4068.9,14.5]
[1760122739377,0.52558292,4069.1,4068.9,14.5]
[1760122739783,0.52558292,4069.0,4068.7,0.002]
[1760122740402,0.95898292,4068.9,4068.7,0.002]
[1760122740588,1.30034063,4068.8,4068.7,0.002]
[1760122740975,1.08138292,4068.8,4068.7,0.002]
[1760122741386,4.94429086,4068.8,4068.7,0.002]
[1760122741571,34.94429086,4068.8,4068.7,0.002]
[1760122741767,36.86429086,4068.8,4068.7,0.002]
[1760122741970,30.0,4068.7,4067.3,0.1244]
[1760122742176,6.86429086,4068.8,4067.4,14.5]
[1760122742177,0.77912542,4067.9,4067.4,14.5]
[1760122742411,0.4334,4067.8,4067.4,14.5]
[1760122742719,0.4334,4067.7,4067.3,0.1244]
[1760122742882,0.4334,4067.6,4067.3,0.002]
[1760122743276,0.4334,4067.5,4067.3,0.002]
[1760122743714,0.4334,4067.4,4067.3,0.002]
[1760122744674,0.1224,4067.5,4067.3,0.002]
[1760122744875,0.4334,4067.4,4067.3,0.002]
[1760122746674,7.5634,4067.4,4067.3,0.002]
[1760122746876,8.08898292,4067.4,4067.3,0.002]
[1760122748211,7.65558292,4067.4,4067.3,0.002]
[1760122748377,7.13,4067.4,4067.3,0.24807109]
[1760122748710,3.738,4068.2,4067.3,0.24807109]
[1760122748711,7.13,4067.7,4067.6,2.45845215]
[1760122749012,7.13,4068.1,4067.7,2.45833139]
[1760122749188,0.1224,4067.9,4067.7,2.45833604]
[1760122749376,0.1224,4067.9,4067.8,2.45833128]
[1760122749981,0.1224,4067.9,4067.3,0.002]
[1760122749982,4.1714,4067.9,4067.3,0.002]
[1760122750191,0.52281441,4067.8,4067.3,0.002]
[1760122750484,1.17953983,4067.8,4067.3,0.002]
[1760122750683,0.4334,4067.7,4067.3,0.002]
[1760122752208,0.4334,4067.6,4067.3,0.002]
[1760122752827,0.4334,4067.5,4067.3,0.002]
[1760122753339,0.4334,4067.4,4067.3,0.002]
[1760122755596,7.5634,4067.4,4067.3,0.002]
[1760122755794,8.08621441,4067.4,4067.3,0.002]
[1760122756039,8.96184831,4067.4,4067.3,0.002]
[1760122756218,8.95745177,4067.4,4067.3,0.002]
[1760122756525,38.08621441,4067.4,4067.3,0.002]
[1760122756725,39.392571,4067.4,4067.3,0.002]
[1760122757037,26.23121441,4067.4,4067.3,0.002]
[1760122757334,18.576571,4067.4,4067.3,0.002]
[1760122757622,18.01321441,4067.4,4067.3,0.002]
[1760122758135,8.08621441,4067.4,4067.3,0.002]
[1760122758430,14.7424658,4067.4,4067.3,0.002]
[1760122758765,8.9554658,4067.4,4067.3,0.002]
[1760122758907,14.7424658,4067.4,4067.3,0.002]
[1760122759094,13.87321441,4067.4,4067.3,0.002]
[1760122759296,14.7424658,4067.4,4067.3,0.002]
[1760122760342,43.87321441,4067.4,4067.3,0.002]
[1760122760891,45.17548486,4067.4,4067.3,0.002]
[1760122761122,45.17547142,4067.4,4067.3,0.002]
[1760122761345,43.87321441,4067.4,4067.3,0.002]
[1760122761504,45.79321441,4067.4,4067.3,0.002]
[1760122761709,48.25178745,4067.4,4067.3,0.002]
[1760122762020,45.79321441,4067.4,4067.3,0.002]
[1760122762215,36.75021441,4067.4,4067.3,0.002]
[1760122762416,20.76621441,4067.4,4067.3,0.002]
[1760122763143,20.39484773,4067.4,4067.3,0.002]
[1760122763330,19.09221441,4067.4,4067.3,0.002]
[1760122764415,19.09221441,4067.4,4066.8,0.002]
[1760122764416,15.79321441,4067.4,4066.8,0.002]
[1760122764617,0.86882745,4066.9,4066.8,0.002]
[1760122764818,5.12964186,4066.9,4066.8,0.002]
[1760122765010,4.26081441,4066.9,4066.8,0.002]
[1760122765456,5.56304186,4066.9,4066.8,0.002]
[1760122766032,5.99745559,4066.9,4066.8,0.002]
[1760122766346,4.69421441,4066.9,4066.8,0.002]
[1760122767546,18.89275838,4066.9,4066.0,0.003]
[1760122767748,1.3056966,4066.2,4066.0,0.003]
[1760122768047,4.26081441,4066.1,4066.0,0.003]
[1760122768249,4.69421441,4066.1,4066.0,0.003]
[1760122768435,5.99991101,4066.1,4066.0,0.003]
[1760122768945,4.69421441,4066.1,4066.0,0.003]
[1760122769326,0.52281441,4066.1,4066.0,0.003]
[1760122771431,0.95621441,4066.1,4066.0,0.003]
[1760122771859,2.26191101,4066.1,4066.0,0.003]
[1760122772162,1.82851101,4066.1,4066.0,0.003]
[1760122772657,2.26191101,4066.1,4066.0,0.003]
[1760122773070,1.82851101,4066.1,4066.0,0.003]
[1760122773777,0.52281441,4066.1,4066.0,2.46241957]
[1760122773952,1.39479724,4066.1,4066.0,2.89071957]
[1760122774130,1.39479724,4066.1,4066.0,0.4313]
[1760122774331,0.52281441,4066.1,4066.0,0.003]
[1760122775072,1.39474708,4066.1,4066.0,0.003]
[1760122777227,0.52281441,4066.1,4066.0,0.003]
[1760122778641,0.95621441,4066.1,4066.0,0.003]
[1760122779462,2.26191101,4066.1,4066.0,0.003]
[1760122780247,2.26191101,4066.1,4066.0,0.005]
[1760122780851,1.82851101,4066.1,4066.0,0.005]
[1760122781879,0.52281441,4066.1,4066.0,0.005]
[1760122782375,2.26191101,4066.1,4066.0,0.005]
[1760122782880,12.62883498,4066.1,4065.5,0.002]
[1760122783081,2.2683233,4066.0,4065.5,0.002]
[1760122783247,0.1475,4065.6,4065.5,0.002]
[1760122783448,0.67031441,4065.6,4065.5,0.002]
[1760122783640,1.10241441,4065.6,4065.5,0.002]
[1760122785071,0.95491441,4065.6,4065.5,0.002]
[1760122785472,2.65054981,4065.6,4065.5,0.002]
[1760122785850,2.26472495,4065.6,4065.5,0.002]
[1760122786488,0.95491441,4065.6,4065.5,0.002]
[1760122787699,43.80042724,4065.6,4065.5,0.002]
[1760122787853,33.80042724,4065.6,4065.5,0.002]
[1760122788053,35.72042724,4065.6,4065.5,0.002]
[1760122788491,35.72042724,4065.6,4065.1,0.002]
[1760122788492,2.45990357,4065.2,4065.1,0.002]
[1760122788804,40.69071798,4065.2,4065.1,0.002]
[1760122789157,41.11991798,4065.2,4065.1,0.002]
[1760122789584,41.11991798,4065.2,4064.3,7.61440937]
[1760122789585,30.0,4065.1,4064.3,7.61440937]
[1760122789763,50.51436353,4064.4,4064.3,7.36820937]
[1760122789963,35.29510373,4064.4,4064.3,4.0385954]
[1760122790161,33.11811441,4064.4,4064.3,4.0385954]
[1760122790361,38.42356981,4064.4,4064.3,4.0385954]
[1760122790562,25.03404286,4064.4,4064.3,4.0385954]
[1760122790776,39.04604286,4064.4,4064.3,4.0385954]
[1760122790954,41.50643061,4064.4,4064.3,4.0385954]
[1760122791148,42.00436502,4064.4,4064.3,4.0385954]
[1760122791582,39.54397727,4064.4,4064.3,4.0385954]
[1760122791784,41.28350422,4064.4,4064.3,4.0385954]
[1760122792081,36.35997727,4064.4,4064.3,4.0385954]
[1760122792286,38.82036502,4064.4,4064.3,4.0385954]
[1760122792484,39.06646502,4064.4,4064.3,4.0385954]
[1760122792694,38.82036502,4064.4,4064.3,4.0385954]
[1760122792865,42.00436502,4064.4,4064.3,2.04071164]
[1760122793062,36.21636502,4064.4,4064.3,2.04071164]
[1760122793258,42.00436502,4064.4,4064.3,2.04071164]
[1760122793462,43.73943974,4064.4,4064.3,2.04071164]
[1760122793870,42.00436502,4064.4,4064.3,2.04071164]
[1760122795775,39.54397727,4064.4,4064.3,2.04071164]
[1760122796485,42.00436502,4064.4,4064.3,2.04071164]
[1760122797700,42.00436502,4064.4,4064.3,2.04271164]
[1760122797902,42.63796502,4064.4,4064.1,0.00923868]
[1760122798102,61.87484708,4064.2,4064.1,0.00923868]
[1760122798399,54.40158677,4064.2,4064.1,0.00923868]
[1760122798574,54.83078677,4064.2,4064.1,0.00923868]
[1760122798773,55.92781258,4064.2,4064.1,0.00923868]
[1760122798971,54.19718677,4064.2,4064.1,0.00923868]
[1760122799686,39.70512324,4064.2,4064.1,0.00923868]
[1760122799867,9.70512324,4064.2,4064.1,0.00923868]
[1760122800068,39.70512324,4064.2,4064.1,0.00923868]
[1760122800269,35.68329046,4063.9,4063.6,0.004186]
[1760122800477,50.3006751,4063.7,4063.6,0.004186]
[1760122800678,50.82348951,4063.7,4063.6,0.004186]
[1760122800912,34.71358162,4063.7,4063.6,0.004186]
[1760122801207,7.93496648,4063.7,4063.6,0.004186]
[1760122801579,9.85496648,4063.7,4063.6,0.004186]
[1760122801805,7.28614424,4063.7,4063.6,0.004186]
[1760122802735,0.3695,4064.3,4063.6,0.004186]
[1760122802878,0.60422041,4064.6,4063.6,0.004186]
[1760122803077,0.38602041,4064.6,4064.5,2.46032722]
[1760122803315,0.51937491,4065.1,4065.0,3.0936246]
[1760122803583,1.42893738,4066.2,4065.0,3.0936246]
[1760122803584,0.38588019,4066.1,4065.3,0.6336]
[1760122803890,2.507,4066.0,4064.5,0.24603272]
[1760122804098,30.0,4065.8,4064.7,0.73974619]
[1760122804324,5.29307369,4065.7,4064.0,3.09421384]
[1760122804479,0.51965145,4065.6,4064.1,0.69540569]
[1760122804677,0.51965145,4065.6,4064.3,0.6336]
[1760122804912,3.739,4065.9,4065.0,0.6336]
[1760122805114,1.942,4066.1,4065.2,0.6336]
[1760122805311,3.739,4066.2,4065.5,2.45968626]
[1760122805609,4.1246,4066.4,4065.4,0.6336]
[1760122805812,0.52026584,4066.3,4065.3,0.6336]
[1760122806177,0.52026584,4066.3,4064.7,0.4479]
[1760122806381,30.0,4066.1,4064.1,3.4233072]
[1760122806616,15.29368808,4066.0,4064.4,2.46037135]
[1760122806778,30.0,4065.7,4064.1,0.34233072]
[1760122806987,6.95908808,4065.6,4064.1,2.80288884]
[1760122807290,30.0,4065.2,4063.6,0.004186]
[1760122807492,0.64882224,4064.7,4063.6,0.004186]
[1760122807709,0.64882224,4064.8,4063.6,0.004186]
[1760122807911,3.739,4064.7,4063.6,0.004186]
[1760122808110,0.1224,4064.8,4063.6,0.452086]
[1760122808317,0.1224,4064.8,4064.3,2.46044753]
[1760122808546,0.64882224,4065.6,4064.4,0.4479]
[1760122808701,3.738,4065.6,4064.5,0.6336]
[1760122808907,2.89571739,4065.5,4064.3,0.50434657]
[1760122809156,0.64882224,4065.3,4063.9,1.0815]
[1760122809335,1.62453963,4065.5,4064.8,0.6336]
[1760122809637,3.738,4065.7,4064.6,0.6336]
[1760122809836,0.52021739,4065.6,4064.8,0.6336]
[1760122810039,0.38588928,4066.1,4065.3,2.45978903]
[1760122810242,0.90655518,4066.1,4064.9,3.738]
[1760122810445,0.90655518,4066.1,4065.5,2.45970797]
[1760122810644,0.5206659,4066.1,4065.2,0.6336]
[1760122810946,3.738,4066.6,4065.4,0.6336]
[1760122811101,3.738,4066.6,4065.3,5.25886627]
[1760122811102,0.9730659,4066.5,4065.6,0.6336]
[1760122811306,2.43776921,4066.8,4066.2,2.4592639]
[1760122811307,0.001,4066.8,4066.2,2.4592639]
[1760122811508,0.001,4066.8,4066.7,3.09259623]
[1760122811939,0.001,4066.8,4066.7,9.32949623]
[1760122812132,0.001,4066.8,4066.7,4.71935424]
[1760122812342,0.001,4066.8,4066.7,10.50835424]
[1760122812522,0.001,4066.8,4066.7,12.42835424]
[1760122813244,0.001,4068.7,4067.6,5.01205215]
[1760122813245,1e-08,4067.7,4067.6,5.01205215]
[1760122813413,1e-08,4067.7,4067.6,10.80005215]
[1760122813613,1e-08,4067.7,4067.6,7.83026634]
[1760122813847,1e-08,4067.7,4067.6,5.45995215]
[1760122814044,1e-08,4067.7,4067.6,9.29650793]
[1760122814249,1e-08,4067.7,4067.6,11.34650793]
[1760122814910,1e-08,4067.7,4067.6,5.55850793]
[1760122815128,1e-08,4067.7,4067.6,11.34550793]
[1760122815331,1e-08,4067.7,4067.6,12.72591268]
[1760122815964,1e-08,4067.7,4067.6,10.67591268]
[1760122816267,1e-08,4067.7,4067.6,6.93891268]
[1760122816767,1e-08,4067.7,4067.6,6.64335215]
[1760122816967,1e-08,4067.7,4066.6,0.4398]
[1760122817326,1e-08,4067.7,4066.7,3.104]
[1760122817526,1e-08,4067.7,4067.4,0.09857011]
[1760122817733,1e-08,4067.7,4067.1,5.83574723]
[1760122817928,1e-08,4067.7,4067.2,0.02458693]
[1760122818163,1e-08,4067.7,4067.1,3.377]
[1760122818164,1e-08,4067.7,4067.6,2.45845215]
[1760122818540,1e-08,4067.7,4067.6,0.02458452]
[1760122818731,1e-08,4067.7,4067.6,2.45845215]
[1760122819136,1e-08,4067.7,4067.6,4.4339782]
[1760122819335,0.001,4068.2,4068.1,3.09174999]
[1760122819529,0.001,4068.2,4068.1,7.05044999]
[1760122819733,0.001,4068.2,4068.1,3.75424999]
[1760122820032,0.001,4068.2,4068.1,3.77883148]
[1760122820234,0.001,4068.2,4068.1,4.96631187]
[1760122820731,0.001,4068.2,4068.1,3.75424999]
[1760122820932,0.001,4068.2,4068.1,3.53154999]
[1760122821179,0.001,4068.2,4068.1,3.55613148]
[1760122821337,0.001,4068.2,4068.1,7.26754999]
[1760122821662,0.001,4068.2,4068.1,3.53154999]
[1760122821869,0.001,4068.2,4067.6,2.45845215]
[1760122822071,0.001,4068.2,4067.9,3.736]
[1760122822240,0.001,4068.2,4068.1,2.45814999]
[1760122822648,0.001,4068.2,4067.5,0.09856817]
[1760122822977,0.001,4068.2,4067.8,0.6336]
[1760122823361,0.001,4068.2,4067.9,0.6336]
[1760122823764,0.001,4068.2,4067.4,0.09856817]
[1760122823946,0.001,4068.2,4067.6,0.6336]
[1760122824362,0.001,4068.2,4067.7,2.45837809]
[1760122824562,0.4505,4068.2,4067.3,2.45863082]
[1760122824877,0.4505,4068.2,4067.4,0.02458573]
[1760122824878,0.001,4068.2,4067.4,0.02458573]
[1760122825081,0.001,4068.2,4067.5,2.45846225]
[1760122825250,0.001,4068.2,4067.5,0.6336]
[1760122825461,0.001,4068.2,4067.5,3.09209419]
[1760122825766,0.001,4068.2,4067.8,2.45827217]
[1760122825971,0.001,4068.2,4068.1,2.45814999]
[1760122826147,0.001,4068.2,4068.1,2.48273148]
[1760122826345,0.001,4068.2,4068.0,2.45820295]
[1760122826581,0.001,4068.2,4068.1,3.09174999]
[1760122826743,0.001,4068.2,4068.1,5.47613148]
[1760122826943,0.001,4068.2,4068.1,5.45154999]
[1760122827344,0.001,4068.6,4068.5,3.09150832]
[1760122827559,0.001,4068.6,4068.5,6.8510874]
[1760122827841,0.001,4068.6,4068.5,10.16119583]
[1760122829268,0.001,4068.6,4068.5,6.54859583]
[1760122829472,0.001,4068.6,4068.5,10.28359583]
[1760122830757,0.001,4068.6,4068.5,3.55519583]
[1760122830958,0.001,4068.6,4068.5,0.1224]
[1760122831367,0.001,4068.6,4068.1,2.58049519]
[1760122831568,0.001,4068.6,4068.5,2.45790832]
[1760122831769,0.001,4068.6,4068.1,0.1224]
[1760122831952,0.1224,4068.5,4067.8,0.1224]
[1760122832148,0.1224,4068.5,4067.9,0.6336]
[1760122832389,0.374,4068.5,4067.6,3.72]
[1760122832881,0.374,4068.5,4067.8,2.45831688]
[1760122833070,0.38552146,4068.4,4068.3,2.45802915]
[1760122833269,0.38552146,4068.4,4068.3,3.53142915]
[1760122833453,0.38552146,4068.4,4067.9,3.734]
[1760122833454,0.001,4068.6,4068.4,0.6336]
[1760122833649,0.001,4068.6,4067.8,0.4398]
[1760122833851,0.001,4068.6,4068.2,2.4580806]
[1760122834065,0.001,4068.6,4068.2,2.45807298]
[1760122834283,0.001,4068.6,4068.3,2.45801794]
[1760122834486,0.001,4068.6,4068.4,2.45795414]
[1760122834851,0.001,4068.6,4068.0,0.6336]
[1760122835052,0.001,4068.6,4068.1,0.6336]
[1760122835387,0.001,4068.6,4068.5,3.09150832]
[1760122835772,0.001,4068.6,4068.5,0.6336]
[1760122835971,0.001,4068.6,4068.5,3.09150832]
[1760122836880,0.001,4068.6,4068.5,3.5558874]
[1760122837450,0.001,4068.6,4068.5,4.50609996]
[1760122837654,0.001,4068.6,4068.5,7.26530832]
[1760122837978,0.001,4068.6,4068.5,3.09150832]
[1760122838490,0.51723354,4068.6,4068.5,3.09150832]
[1760122838793,0.51723354,4068.6,4068.5,3.53130832]
[1760122841364,0.51723354,4068.6,4068.5,5.45130832]
[1760122841669,0.00100001,4069.1,4069.0,3.09120629]
[1760122841874,0.001,4069.1,4069.0,6.82520629]
[1760122842070,0.001,4069.1,4069.0,3.53100629]
[1760122842275,0.001,4069.1,4069.0,7.26500629]
[1760122842472,0.001,4069.1,4069.0,22.81690855]
[1760122842675,0.001,4069.1,4069.0,25.18722274]
[1760122843366,0.001,4069.1,4069.0,27.10722274]
[1760122843562,0.872308,4071.1,4070.6,3.09024029]
[1760122843767,0.38539028,4072.2,4071.5,3.08968447]
[1760122843961,0.38539028,4072.2,4070.7,1.92]
[1760122843962,0.38539028,4072.2,4072.0,3.08939567]
[1760122844265,1.29843738,4072.8,4072.0,6.82339567]
[1760122844511,1.29743738,4072.6,4072.0,7.26319567]
[1760122844684,1.29743738,4072.7,4072.0,7.26319567]
[1760122844886,1.29743738,4072.6,4072.0,7.26319567]
[1760122845209,1.29743738,4072.5,4071.3,0.4398]
[1760122845397,0.3709,4072.0,4070.5,0.2222]
[1760122845596,0.3709,4072.0,4070.7,3.733]
[1760122845597,1.29743738,4071.6,4070.7,3.733]
[1760122846075,1.29743738,4071.6,4071.0,2.45634555]
[1760122846274,1.29743738,4071.7,4070.7,3.733]
[1760122846482,1.29743738,4071.5,4070.5,2.45664541]
[1760122846689,1.29743738,4071.3,4070.3,3.733]
[1760122847001,1.29743738,4071.2,4070.3,2.45680603]
[1760122847180,1.29743738,4071.1,4069.7,0.4626]
[1760122847383,1.29743738,4070.7,4070.1,2.4569144]
[1760122847589,1.29743738,4070.8,4069.8,1.92]
[1760122847973,0.4292,4071.2,4070.0,17.34950226]
[1760122847974,1.29743738,4071.0,4070.0,17.34950226]
[1760122848302,0.38532229,4071.2,4070.7,0.6336]
[1760122848303,1.29743738,4071.1,4070.7,0.6336]
[1760122848493,1.29743738,4071.1,4070.4,2.45674735]
[1760122848895,1.29743738,4071.1,4070.3,3.733]
[1760122849122,2.048,4071.7,4070.1,3.732]
[1760122849123,1.29743738,4070.9,4070.1,3.732]
[1760122849323,1.29743738,4070.9,4070.3,2.45682136]
[1760122849523,1.29743738,4070.9,4070.3,2.45677197]
[1760122849929,1.29743738,4070.9,4070.2,0.6336]
[1760122850139,1.29743738,4071.0,4069.6,0.2222]